bitfinex/quotes_SOLUSD_20251208
["timestamp","ask_amount","ask_price","bid_price","bid_amount"]
[1765178655862,0.67,135.3,135.28,8.18]
[1765178656377,14.67,135.3,135.28,10.82289761]
[1765178656675,0.67,135.32,135.29,0.66]
[1765178656874,0.67,135.32,135.3,10.82289761]
[1765178657056,0.67,135.32,135.3,8.18]
[1765178657375,0.67,135.32,135.3,10.82289761]
[1765178657955,0.67,135.32,135.3,8.18]
[1765178658156,0.67,135.32,135.29,10.03417502]
[1765178658469,0.67,135.32,135.3,8.18]
[1765178659782,0.67,135.32,135.29,18.21417502]
[1765178659956,0.67,135.32,135.29,15.57127741]
[1765178661670,0.67,135.32,135.29,18.21417502]
[1765178661970,21.38966806,135.33,135.29,18.21417502]
[1765178661971,14.0,135.33,135.3,0.66]
[1765178662150,14.66,135.33,135.31,8.18]
[1765178662758,0.66,135.32,135.31,8.18]
[1765178664162,14.66,135.33,135.31,8.18]
[1765178664362,0.66,135.32,135.31,8.18]
[1765178665567,14.0,135.33,135.31,8.18]
[1765178665874,14.66,135.33,135.31,8.18]
[1765178666962,14.0,135.32,135.31,8.18]
[1765178667578,14.0,135.32,135.31,8.84]
[1765178667880,14.0,135.32,135.31,8.18]
[1765178668462,14.0,135.32,135.31,15.57043677]
[1765178668663,14.0,135.32,135.31,16.23043677]
[1765178668977,14.0,135.32,135.31,8.05043677]
[1765178669292,14.0,135.32,135.31,16.23043677]
[1765178669468,14.0,135.32,135.31,27.6832793]
[1765178669670,14.0,135.34,135.31,27.6832793]
[1765178670083,14.66,135.34,135.31,27.6832793]
[1765178670480,14.0,135.34,135.32,0.66]
[1765178670657,14.0,135.34,135.33,8.18]
[1765178670862,0.76,135.35,135.33,8.18]
[1765178671404,10.79127394,135.35,135.32,8.18]
[1765178671587,0.76,135.35,135.32,8.18]
[1765178671889,0.66,135.34,135.32,8.18]
[1765178672889,8.04894059,135.34,135.32,8.18]
[1765178673686,0.66,135.34,135.32,8.18]
[1765178675759,14.0,135.33,135.32,8.18]
[1765178677783,14.0,135.33,135.29,43.59681038]
[1765178677784,14.66,135.33,135.3,10.03371995]
[1765178677990,14.66,135.32,135.3,8.18]
[1765178680490,14.66,135.32,135.3,10.82289761]
[1765178680669,14.66,135.32,135.3,8.18]
[1765178680985,14.66,135.32,135.3,10.82289761]
[1765178681159,0.66,135.31,135.29,10.03408675]
[1765178681867,14.0,135.3,135.29,10.03408675]
[1765178682072,0.66,135.31,135.29,10.03408675]
[1765178682488,0.66,135.31,135.3,2.64289761]
[1765178684593,7.3897179,135.33,135.3,10.03384161]
[1765178684896,14.0,135.32,135.31,2.64289761]
[1765178685198,14.66,135.32,135.3,18.87384161]
[1765178685577,14.66,135.32,135.3,18.21384161]
[1765178687699,0.66,135.31,135.3,8.18]
[1765178688795,0.66,135.31,135.3,15.570983]
[1765178692404,0.66,135.31,135.3,8.18]
[1765178693280,14.67,135.32,135.3,8.18]
[1765178694024,0.67,135.31,135.3,8.18]
[1765178694397,14.67,135.32,135.3,8.18]
[1765178698114,14.67,135.32,135.3,19.70214958]
[1765178699015,0.7,135.31,135.3,8.18]
[1765178699190,14.0,135.32,135.3,8.18]
[1765178699191,14.7,135.32,135.3,8.18]
[1765178699721,14.0,135.32,135.3,13.03125549]
[1765178700217,14.7,135.32,135.3,13.03125549]
[1765178700813,14.0,135.32,135.31,4.85125549]
[1765178701004,0.1,135.35,135.32,8.80994492]
[1765178701204,0.1,135.35,135.34,4.13125549]
[1765178701720,0.1,135.35,135.34,4.85125549]
[1765178702210,0.1,135.35,135.34,4.13125549]
[1765178702410,0.1,135.35,135.34,4.85125549]
[1765178702647,0.1,135.35,135.34,12.24005407]
[1765178702790,0.1,135.35,135.34,29.20999899]
[1765178705118,0.1,135.35,135.34,4.13125549]
[1765178705295,0.1,135.35,135.34,12.29125549]
[1765178706421,0.1,135.35,135.34,19.68005407]
[1765178707423,0.1,135.35,135.34,20.40005407]
[1765178710801,0.1,135.35,135.34,19.68005407]
[1765178711402,14.1,135.35,135.34,19.68005407]
[1765178711604,0.1,135.35,135.34,29.20999899]
[1765178711928,0.1,135.37,135.36,25.11880892]
[1765178712130,14.0,135.4,135.36,41.5413199]
[1765178712343,8.08408326,135.43,135.39,4.13125549]
[1765178712344,14.0,135.42,135.39,4.13125549]
[1765178712630,14.7,135.42,135.41,4.13125549]
[1765178712799,0.7,135.41,135.39,4.13125549]
[1765178712999,0.7,135.41,135.39,12.29125549]
[1765178713619,14.0,135.42,135.4,4.85125549]
[1765178713811,14.0,135.42,135.41,4.13125549]
[1765178715020,14.0,135.42,135.41,12.29125549]
[1765178715220,0.1,135.44,135.41,20.39623444]
[1765178715428,0.1,135.44,135.43,4.13125549]
[1765178715631,0.1,135.44,135.43,8.16]
[1765178716208,0.1,135.44,135.43,8.88]
[1765178716408,0.1,135.44,135.43,8.16]
[1765178716710,0.1,135.44,135.43,12.29125549]
[1765178717112,0.1,135.44,135.43,19.67514384]
[1765178718021,0.1,135.44,135.43,20.39514384]
[1765178719927,0.1,135.44,135.43,29.20508876]
[1765178721926,0.1,135.46,135.44,8.80994492]
[1765178722131,0.1,135.46,135.45,12.29125549]
[1765178722327,0.1,135.46,135.45,42.2313199]
[1765178722524,0.1,135.49,135.47,8.80994492]
[1765178722726,0.1,135.49,135.48,37.41006441]
[1765178722920,0.72,135.57,135.53,8.80994492]
[1765178723126,0.72,135.58,135.55,4.13125549]
[1765178723353,0.72,135.58,135.55,8.16]
[1765178723354,8.09610616,135.58,135.55,8.16]
[1765178723726,0.72,135.57,135.55,8.16]
[1765178724231,4.13125549,135.6,135.55,12.29125549]
[1765178724423,0.72,135.57,135.55,12.29125549]
[1765178725428,0.72,135.57,135.55,8.16]
[1765178727144,0.72,135.57,135.55,12.29125549]
[1765178728456,0.72,135.57,135.55,19.66854727]
[1765178728628,0.72,135.57,135.55,12.29125549]
[1765178729767,0.72,135.57,135.56,4.13125549]
[1765178729939,8.09520108,135.59,135.56,4.13125549]
[1765178730135,0.72,135.58,135.57,4.13125549]
[1765178730727,0.72,135.6,135.57,4.13125549]
[1765178730941,0.72,135.6,135.58,4.13125549]
[1765178731235,0.72,135.6,135.58,12.29125549]
[1765178731432,0.72,135.6,135.59,4.13125549]
[1765178731936,0.72,135.6,135.58,12.29125549]
[1765178732139,8.09471443,135.6,135.58,8.16]
[1765178732339,8.09471443,135.6,135.57,4.13125549]
[1765178732544,0.72,135.59,135.57,4.13125549]
[1765178732950,0.72,135.59,135.58,4.13125549]
[1765178733148,21.37368937,135.62,135.58,11.5068706]
[1765178733348,0.72,135.61,135.58,11.5068706]
[1765178733647,0.72,135.61,135.57,11.50736826]
[1765178733957,8.09427162,135.61,135.57,11.50736826]
[1765178734254,12.22552711,135.61,135.56,19.66793312]
[1765178734455,4.85125549,135.6,135.56,8.16]
[1765178734649,0.72,135.59,135.56,8.16]
[1765178735031,14.0,135.58,135.56,8.16]
[1765178735457,14.72,135.58,135.56,19.66767826]
[1765178736836,14.72,135.58,135.56,12.29125549]
[1765178737039,14.72,135.58,135.56,19.66792435]
[1765178738057,14.72,135.58,135.52,26.28046734]
[1765178738058,8.80994492,135.55,135.38,4.13125549]
[1765178738235,4.13125549,135.48,135.43,4.13125549]
[1765178738435,4.13125549,135.51,135.45,4.13125549]
[1765178738846,0.72,135.5,135.46,4.13125549]
[1765178739257,0.72,135.5,135.47,8.16]
[1765178740047,0.72,135.5,135.47,15.54164822]
[1765178741536,0.72,135.5,135.47,8.16]
[1765178742351,8.10012466,135.5,135.47,8.16]
[1765178742550,0.72,135.49,135.47,8.16]
[1765178743255,14.0,135.48,135.47,8.16]
[1765178743454,14.72,135.48,135.47,8.16]
[1765178743959,14.72,135.48,135.46,8.16]
[1765178744144,0.72,135.47,135.46,8.16]
[1765178744348,21.37993232,135.51,135.46,17.99930208]
[1765178744552,31.9392344,135.51,135.46,17.99930208]
[1765178744747,0.72,135.5,135.46,18.68930208]
[1765178744948,10.55930208,135.5,135.46,8.16]
[1765178745148,10.55930208,135.5,135.46,17.99930208]
[1765178745370,8.10061849,135.49,135.46,17.99930208]
[1765178745774,0.72,135.48,135.46,17.99930208]
[1765178746150,0.72,135.48,135.46,9.83930208]
[1765178746372,8.10124286,135.48,135.45,18.01930208]
[1765178746613,8.10124286,135.48,135.46,9.83930208]
[1765178747775,7.38124286,135.48,135.46,9.83930208]
[1765178748179,8.10124286,135.48,135.46,9.83930208]
[1765178748571,8.10124286,135.48,135.44,33.19197297]
[1765178748572,0.72,135.47,135.44,9.83930208]
[1765178748765,0.72,135.47,135.41,18.649247]
[1765178748766,9.83930208,135.46,135.41,18.649247]
[1765178748964,9.83930208,135.46,135.41,9.83930208]
[1765178749170,10.55930208,135.45,135.4,10.52930208]
[1765178749485,0.72,135.45,135.42,9.83930208]
[1765178749778,0.72,135.44,135.42,9.83930208]
[1765178750294,0.72,135.44,135.4,16.25546039]
[1765178750295,0.72,135.47,135.43,10.52930208]
[1765178750581,14.0,135.46,135.45,9.83930208]
[1765178750964,14.7,135.46,135.45,9.83930208]
[1765178751163,14.0,135.46,135.45,9.83930208]
[1765178751981,112.18210274,135.47,135.45,9.83930208]
[1765178752158,112.88210274,135.47,135.45,9.83930208]
[1765178752782,112.88210274,135.47,135.45,6.28051901]
[1765178753082,0.7,135.46,135.45,6.28051901]
[1765178753485,112.88210274,135.47,135.45,6.28051901]
[1765178754788,0.7,135.46,135.44,6.28051901]
[1765178755985,14.0,135.45,135.44,6.28051901]
[1765178760286,14.0,135.45,135.44,6.98051901]
[1765178760483,14.0,135.45,135.44,6.28051901]
[1765178760684,14.0,135.45,135.44,3.33816566]
[1765178761693,14.0,135.45,135.44,10.72150883]
[1765178761872,14.0,135.45,135.44,19.53145375]
[1765178762191,105.5,135.5,135.45,8.80994492]
[1765178762192,14.0,135.49,135.45,8.80994492]
[1765178762409,14.0,135.49,135.48,2.63816566]
[1765178762571,21.3791856,135.52,135.48,10.81816566]
[1765178762770,14.0,135.51,135.49,0.7]
[1765178762969,14.0,135.51,135.48,8.18]
[1765178762970,14.7,135.51,135.48,8.18]
[1765178763207,0.7,135.5,135.47,8.18]
[1765178763588,0.7,135.5,135.47,8.88]
[1765178764093,8.08010738,135.5,135.47,18.89987299]
[1765178764300,0.7,135.5,135.47,18.89987299]
[1765178765286,0.7,135.5,135.48,2.63816566]
[1765178765493,14.0,135.51,135.49,2.63816566]
[1765178765698,14.0,135.51,135.5,2.63816566]
[1765178765875,14.0,135.51,135.5,10.81816566]
[1765178766194,14.0,135.53,135.5,11.51816566]
[1765178766497,14.0,135.53,135.52,2.63816566]
[1765178767493,14.0,135.53,135.52,10.71715031]
[1765178767674,14.0,135.53,135.52,3.33816566]
[1765178768897,14.0,135.53,135.52,10.71715031]
[1765178769800,14.0,135.53,135.52,2.63816566]
[1765178770304,14.0,135.53,135.47,10.71976687]
[1765178770305,14.0,135.52,135.47,10.71976687]
[1765178770492,3.33816566,135.51,135.48,8.18]
[1765178770990,0.7,135.5,135.48,8.18]
[1765178772608,8.0801648,135.5,135.48,8.18]
[1765178772980,0.7,135.5,135.48,8.18]
[1765178773488,8.08017335,135.5,135.48,8.18]
[1765178775705,14.0,135.52,135.49,6.97838719]
[1765178775902,14.0,135.52,135.51,6.27838719]
[1765178776111,14.0,135.52,135.51,14.45838719]
[1765178776288,14.0,135.52,135.51,15.15838719]
[1765178777210,14.0,135.52,135.51,22.53791637]
[1765178780310,14.0,135.52,135.51,14.35791637]
[1765178780494,14.7,135.52,135.5,8.18]
[1765178780702,0.7,135.51,135.5,8.18]
[1765178781012,14.7,135.52,135.5,8.18]
[1765178781200,14.7,135.52,135.5,21.83844434]
[1765178781401,14.7,135.52,135.5,14.45838719]
[1765178781726,0.7,135.51,135.5,21.83846099]
[1765178781913,14.7,135.52,135.5,21.83846099]
[1765178782225,14.7,135.52,135.5,14.45838719]
[1765178783915,0.7,135.51,135.5,14.45838719]
[1765178784213,14.7,135.52,135.5,21.83845056]
[1765178784414,0.7,135.51,135.5,8.18]
[1765178784818,0.7,135.51,135.5,14.45838719]
[1765178785206,14.0,135.52,135.5,15.12838719]
[1765178785521,14.0,135.52,135.51,6.27838719]
[1765178785692,7.37838452,135.54,135.51,14.32789551]
[1765178785893,7.37838452,135.54,135.52,8.18]
[1765178786114,0.7,135.53,135.52,8.18]
[1765178790320,14.0,135.53,135.52,22.50724292]
[1765178792904,22.0768108,135.56,135.52,22.50724292]
[1765178793106,14.0,135.55,135.54,6.27838719]
[1765178793422,14.0,135.55,135.54,14.43838719]
[1765178793637,14.0,135.55,135.54,8.16]
[1765178794113,14.7,135.55,135.53,8.16]
[1765178794312,0.7,135.54,135.53,8.16]
[1765178794618,14.0,135.55,135.53,8.16]
[1765178794619,14.7,135.55,135.53,14.43838719]
[1765178794916,14.7,135.55,135.53,10.79471124]
[1765178795812,14.7,135.55,135.53,8.16]
[1765178796411,14.7,135.55,135.53,10.79471124]
[1765178798725,14.7,135.55,135.53,2.63471124]
[1765178798928,14.7,135.55,135.53,10.79471124]
[1765178799999,14.0,135.55,135.54,2.63471124]
[1765178800204,14.0,135.55,135.54,3.30471124]
[1765178801640,14.0,135.55,135.54,2.63471124]
[1765178802237,14.7,135.55,135.54,8.16]
[1765178802428,22.07735153,135.55,135.52,2.63471124]
[1765178802630,0.7,135.54,135.53,8.16]
[1765178803429,0.7,135.54,135.5,10.01461365]
[1765178803628,0.7,135.54,135.51,8.16]
[1765178803629,14.0,135.53,135.51,8.16]
[1765178803829,14.0,135.52,135.51,8.16]
[1765178804242,14.7,135.52,135.51,8.16]
[1765178804632,14.0,135.52,135.51,8.16]
[1765178804838,22.07898465,135.52,135.51,8.16]
[1765178807450,14.7,135.52,135.51,8.16]
[1765178807643,14.0,135.52,135.51,10.79471124]
[1765178808548,14.7,135.52,135.49,10.01525469]
[1765178808751,14.7,135.52,135.49,18.84525469]
[1765178808947,0.7,135.51,135.5,2.63471124]
[1765178809344,14.7,135.52,135.5,2.63471124]
[1765178814653,14.7,135.52,135.5,4.11866732]
[1765178815342,14.0,135.51,135.5,4.11866732]
[1765178815869,14.68,135.51,135.5,4.11866732]
[1765178817667,14.0,135.51,135.5,4.11866732]
[1765178819273,14.0,135.51,135.5,11.49874112]
[1765178819447,14.0,135.51,135.5,12.21874112]
[1765178819643,14.0,135.51,135.5,21.02868604]
[1765178820237,14.0,135.54,135.5,21.02868604]
[1765178820442,14.0,135.54,135.53,4.11866732]
[1765178820745,14.0,135.54,135.53,12.27866732]
[1765178820946,14.0,135.54,135.53,12.99866732]
[1765178821751,14.0,135.54,135.53,20.37710751]
[1765178823053,14.68,135.56,135.53,20.37710751]
[1765178823253,14.68,135.56,135.54,4.81866732]
[1765178823254,14.0,135.56,135.54,4.81866732]
[1765178823458,30.71714488,135.59,135.55,12.97866732]
[1765178823459,14.0,135.59,135.55,12.97866732]
[1765178823661,14.0,135.58,135.56,12.27866732]
[1765178823849,14.68,135.58,135.56,12.27866732]
[1765178824053,0.68,135.57,135.56,8.16]
[1765178824591,0.68,135.57,135.48,36.90555114]
[1765178824872,14.0,135.58,135.55,4.11866732]
[1765178825057,14.68,135.58,135.55,12.27866732]
[1765178825370,0.68,135.57,135.55,12.97866732]
[1765178825579,0.68,135.57,135.55,12.27866732]
[1765178825867,0.68,135.57,135.55,8.16]
[1765178827570,8.0562942,135.57,135.55,8.16]
[1765178828966,21.37572385,135.58,135.55,12.27866732]
[1765178829190,22.05572385,135.58,135.55,12.97866732]
[1765178829373,14.0,135.58,135.56,4.81866732]
[1765178830176,14.0,135.57,135.56,4.81866732]
[1765178830547,14.0,135.57,135.56,0.7]
[1765178830870,14.0,135.57,135.56,21.00541955]
[1765178831173,0.1,135.64,135.57,25.11880892]
[1765178831369,0.1,135.64,135.63,4.11866732]
[1765178831563,0.1,135.64,135.63,12.27866732]
[1765178831770,0.78,135.64,135.62,16.308864]
[1765178831949,0.78,135.64,135.59,4.11866732]
[1765178831950,12.27129824,135.64,135.59,4.11866732]
[1765178832273,12.27129824,135.64,135.58,12.92861224]
[1765178832460,0.68,135.63,135.59,4.11866732]
[1765178832774,8.05350023,135.63,135.58,20.30422457]
[1765178833073,30.60466773,135.63,135.57,19.65478999]
[1765178833377,0.68,135.62,135.58,4.11866732]
[1765178834375,7.37408745,135.61,135.58,4.11866732]
[1765178834766,0.68,135.6,135.58,4.11866732]
[1765178834954,0.68,135.61,135.59,4.11866732]
[1765178835154,0.68,135.61,135.58,7.37569173]
[1765178835372,7.37373105,135.62,135.59,4.11866732]
[1765178835556,0.68,135.61,135.59,4.11866732]
[1765178835874,0.78,135.64,135.6,12.27866732]
[1765178836178,0.68,135.63,135.62,4.11866732]
[1765178836877,0.68,135.63,135.6,15.53459562]
[1765178837176,7.47247016,135.64,135.62,4.11866732]
[1765178837376,0.1,135.64,135.63,12.27866732]
[1765178838157,0.1,135.64,135.63,8.16]
[1765178838378,0.1,135.64,135.63,12.27866732]
[1765178838564,0.1,135.64,135.63,19.65166739]
[1765178839074,0.1,135.64,135.63,28.46161231]
[1765178841852,0.81,135.64,135.63,12.27866732]
[1765178843778,0.81,135.64,135.61,4.11866732]
[1765178843980,0.81,135.64,135.61,19.65267147]
[1765178844200,0.81,135.64,135.63,4.11866732]
[1765178845188,0.1,135.64,135.63,4.11866732]
[1765178845374,0.1,135.64,135.63,11.49166739]
[1765178848408,0.1,135.64,135.63,36.61047631]
[1765178848703,0.1,135.64,135.63,42.30140574]
[1765178849674,0.1,135.64,135.63,50.46140574]
[1765178852811,0.81,135.64,135.63,31.84186407]
[1765178853598,0.81,135.64,135.63,15.53300007]
[1765178853771,0.81,135.64,135.63,8.16]
[1765178854578,0.81,135.64,135.62,15.53354372]
[1765178855693,0.1,135.64,135.62,25.34314047]
[1765178855899,0.1,135.64,135.63,18.61954167]
[1765178857994,0.1,135.64,135.63,42.30140574]
[1765178858786,0.1,135.66,135.65,9.80959675]
[1765178859083,0.1,135.66,135.65,17.96959675]
[1765178860090,0.1,135.66,135.65,25.34150976]
[1765178860907,0.1,135.66,135.65,34.15145468]
[1765178861916,0.1,135.66,135.65,24.34185793]
[1765178862104,0.1,135.66,135.65,34.15145468]
[1765178863985,0.1,135.66,135.65,25.99145468]
[1765178864311,0.1,135.66,135.65,34.13145468]
[1765178864508,0.1,135.66,135.65,25.99145468]
[1765178864686,0.1,135.66,135.65,34.13145468]
[1765178864885,0.1,135.66,135.65,47.64145468]
[1765178865317,1e-08,135.66,135.65,47.64145468]
[1765178865619,0.1,135.71,135.69,8.80994492]
[1765178865785,0.1,135.71,135.7,26.77954167]
[1765178866109,0.81,135.71,135.7,26.77954167]
[1765178866609,0.81,135.71,135.7,34.14873842]
[1765178866780,0.1,135.71,135.7,34.14873842]
[1765178867611,0.81,135.71,135.7,34.14873842]
[1765178867915,0.1,135.71,135.7,34.14873842]
[1765178869001,0.81,135.71,135.7,34.14873842]
[1765178869208,0.1,135.71,135.7,34.14873842]
[1765178874803,0.1,135.71,135.7,30.59417049]
[1765178875116,0.1,135.71,135.7,44.19417049]
[1765178875615,0.1,135.71,135.7,44.17417049]
[1765178876016,0.1,135.71,135.7,30.57417049]
[1765178877090,0.1,135.71,135.7,44.17417049]
[1765178879308,0.1,135.71,135.7,36.03417049]
[1765178879627,0.1,135.71,135.7,44.17417049]
[1765178881017,0.1,135.71,135.7,30.57417049]
[1765178884332,0.81,135.71,135.7,24.31914167]
[1765178887315,13.61,135.71,135.7,15.50919675]
[1765178887522,13.61,135.71,135.67,8.80994492]
[1765178887743,0.71,135.7,135.68,15.51007486]
[1765178888929,0.71,135.7,135.68,7.37007486]
[1765178889119,0.71,135.7,135.68,15.51007486]
[1765178891825,0.71,135.7,135.65,16.308864]
[1765178892235,3.3386804,135.7,135.66,8.14]
[1765178892641,0.71,135.69,135.66,15.51105492]
[1765178893043,12.8,135.68,135.67,11.43862532]
[1765178893232,0.1,135.71,135.69,25.11880892]
[1765178893233,0.71,135.7,135.69,25.11880892]
[1765178893433,0.81,135.71,135.69,35.88748932]
[1765178893635,0.81,135.71,135.7,2.6286804]
[1765178894238,0.1,135.71,135.7,2.6286804]
[1765178894847,0.1,135.71,135.7,11.43862532]
[1765178895048,0.1,135.71,135.7,18.80782207]
[1765178899336,0.1,135.71,135.7,26.94782207]
[1765178901046,0.77,135.71,135.7,8.14]
[1765178902155,13.57,135.71,135.7,8.14]
[1765178902540,20.93865374,135.71,135.7,8.14]
[1765178903054,20.93865374,135.71,135.67,23.67961886]
[1765178903241,20.93865374,135.71,135.68,8.14]
[1765178903242,0.67,135.7,135.68,8.14]
[1765178904237,8.03926363,135.7,135.66,7.37115319]
[1765178904442,8.03926363,135.7,135.66,15.51115319]
[1765178904443,12.8,135.69,135.66,15.51115319]
[1765178904641,13.47,135.69,135.66,8.14]
[1765178904938,13.47,135.69,135.61,20.26865374]
[1765178904939,2.6286804,135.67,135.61,2.6286804]
[1765178905141,13.47,135.68,135.62,8.14]
[1765178905142,15.4286804,135.66,135.62,8.14]
[1765178905528,0.67,135.65,135.62,8.14]
[1765178906776,12.8,135.66,135.64,27.74748932]
[1765178906954,7.36968787,135.7,135.65,10.7686804]
[1765178906955,0.67,135.67,135.65,10.7686804]
[1765178907166,0.67,135.67,135.66,2.6286804]
[1765178907865,0.67,135.67,135.66,10.00005]
[1765178908782,12.8,135.7,135.66,18.80999492]
[1765178908985,0.1,135.71,135.69,2.6286804]
[1765178909166,0.77,135.71,135.7,10.7686804]
[1765178909669,0.1,135.71,135.7,10.7686804]
[1765178910249,0.1,135.71,135.7,18.80782207]
[1765178910567,0.1,135.71,135.7,39.84782207]
[1765178914668,0.1,135.72,135.71,25.11880892]
[1765178914981,0.1,135.72,135.71,27.74748932]
[1765178916656,0.1,135.72,135.71,35.11614306]
[1765178917448,0.1,135.72,135.71,37.74482346]
[1765178917652,0.1,135.72,135.71,40.69369735]
[1765178917971,0.1,135.72,135.71,35.11614306]
[1765178918974,0.77,135.72,135.71,35.11614306]
[1765178919168,0.77,135.72,135.71,43.25614306]
[1765178923888,0.77,135.72,135.71,27.0775444]
[1765178924176,0.77,135.72,135.71,34.44619814]
[1765178925479,0.1,135.72,135.71,34.44619814]
[1765178925682,0.77,135.72,135.71,34.44619814]
[1765178928283,13.57,135.72,135.71,34.44619814]
[1765178930356,13.57,135.72,135.71,10.7686804]
[1765178930681,12.8,135.71,135.69,27.0775444]
[1765178930884,13.47,135.71,135.69,24.448864]
[1765178931183,0.71,135.7,135.67,7.37063447]
[1765178931365,0.71,135.7,135.67,15.51063447]
[1765178934314,0.71,135.7,135.67,18.13931487]
[1765178934487,0.71,135.7,135.68,9.99893951]
[1765178934665,0.71,135.7,135.68,11.47772207]
[1765178935491,0.71,135.7,135.68,4.10746296]
[1765178935671,0.71,135.7,135.67,19.61805276]
[1765178936087,0.71,135.7,135.68,4.10746296]
[1765178936964,0.71,135.7,135.67,15.5105898]
[1765178936965,0.71,135.7,135.67,19.61805276]
[1765178937197,12.8,135.69,135.67,19.61805276]
[1765178937688,0.71,135.7,135.67,8.14]
[1765178937689,12.8,135.68,135.67,8.14]
[1765178937878,0.71,135.68,135.67,8.14]
[1765178938264,0.71,135.68,135.67,19.61828922]
[1765178940501,0.71,135.68,135.67,12.24746296]
[1765178941589,0.71,135.68,135.67,8.14]
[1765178943199,0.71,135.68,135.67,12.24746296]
[1765178944099,0.71,135.68,135.67,8.14]
[1765178948905,12.8,135.67,135.66,16.308864]
[1765178949212,12.8,135.67,135.66,20.41632696]
[1765178949515,13.51,135.67,135.66,27.78769656]
[1765178950812,13.51,135.67,135.66,20.41632696]
[1765178950994,13.51,135.67,135.66,16.308864]
[1765178953313,12.8,135.67,135.66,37.26764148]
[1765178953491,12.8,135.67,135.66,36.59764148]
[1765178954216,12.8,135.67,135.66,41.37510444]
[1765178954417,12.8,135.67,135.66,37.26764148]
[1765178954793,0.71,135.69,135.67,8.80994492]
[1765178954994,0.71,135.7,135.68,12.24746296]
[1765178955600,0.71,135.7,135.68,19.61728816]
[1765178955800,12.8,135.71,135.69,4.10746296]
[1765178956004,13.51,135.71,135.7,4.10746296]
[1765178956307,13.51,135.71,135.69,4.10746296]
[1765178956616,0.71,135.7,135.69,4.10746296]
[1765178956839,0.71,135.7,135.68,15.5098252]
[1765178957317,0.71,135.7,135.69,4.10746296]
[1765178958692,0.71,135.7,135.68,19.61728816]
[1765178958894,12.8,135.69,135.66,16.308864]
[1765178959189,12.8,135.69,135.65,12.91740788]
[1765178959190,0.71,135.68,135.65,15.51157057]
[1765178959417,0.71,135.68,135.65,19.61903353]
[1765178963825,12.8,135.67,135.65,19.61903353]
[1765178964032,12.8,135.66,135.65,19.61903353]
[1765178964526,12.8,135.66,135.65,29.09897845]
[1765178969815,12.8,135.68,135.66,8.80994492]
[1765178970017,12.8,135.68,135.67,12.24746296]
[1765178970633,20.87028301,135.68,135.67,8.14]
[1765178970836,20.87028301,135.68,135.65,8.14]
[1765178971014,0.7,135.67,135.65,19.61935696]
[1765178975115,0.7,135.67,135.66,4.10746296]
[1765178980749,7.36995273,135.69,135.66,12.14883256]
[1765178980750,0.7,135.69,135.66,12.14883256]
[1765178980953,0.7,135.69,135.68,4.10746296]
[1765178981420,0.7,135.69,135.67,12.24746296]
[1765178982252,104.8,135.7,135.67,19.61805663]
[1765178982546,0.7,135.71,135.69,4.10746296]
[1765178982849,0.7,135.7,135.69,12.24746296]
[1765178984561,0.7,135.7,135.69,19.6172028]
[1765178987366,0.7,135.7,135.69,8.14]
[1765178989062,0.7,135.7,135.68,11.47757271]
[1765178989256,0.7,135.7,135.68,4.10746296]
[1765178990056,0.7,135.7,135.68,11.47754023]